[Event "89_| Campeonato Brasileiro 2023"]
[Site "Recife"]
[Date "2023.12.14"]
[Round "1.1"]
[White "Supi, Luis Paulo"]
[Black "Dos Santos, Vinicius Barbosa"]
[Result "1-0"]
[ECO "B63"]
[WhiteElo "2579"]
[BlackElo "1745"]
[PlyCount "81"]
[EventDate "2023.??.??"]
[EventCountry "BRA"]
[TimeControl "90+30"]
[WhiteClock "1:23:07"]
[BlackClock "0:38:24"]

{[%evp 15,81,48,188,194,287,285,265,260,263,266,299,298,290,300,338,343,359,
320,313,282,318,282,286,281,335,340,396,383,399,401,393,381,387,365,339,334,
330,320,310,277,280,282,364,378,375,367,368,370,360,314,479,485,484,484,468,
475,468,467,488,383,563,556,567,569,560,554,543,533]} 1. e4 {[%emt 0:00:00]} c5
{[%emt 0:00:00]} 2. Nf3 {[%emt 0:00:00]} d6 {[%emt 0:00:00]} 3. Nc3 {[%emt 0:
00:00]} Nc6 {[%emt 0:00:00]} 4. d4 {[%emt 0:00:00]} cxd4 {[%emt 0:00:00]} 5.
Nxd4 {[%emt 0:00:00]} Nf6 {[%emt 0:00:00]} 6. Bg5 {[%emt 0:00:00]} e6 {[%emt 0:
00:00]} 7. Qd2 {[%emt 0:00:00]} Be7 {[%emt 0:00:00]} 8. O-O-O {[%emt 0:00:00]}
Bd7 {[%eval 188,25] [%emt 0:00:00]} ({Better is} 8... O-O $14 {[%eval 48,26]})
9. Ndb5 $18 {[%emt 0:00:00] B63: Sicilian: Richter-Rauzer: 7...Be7 and unusual
Black 7th moves.} Qb8 {[%eval 287,25] [%emt 0:00:00]} (9... O-O $142 {[%eval
194,26]}) 10. Nxd6+ {[%emt 0:00:00]} Bxd6 {[%emt 0:00:00]} 11. Qxd6 {[%emt 0:
00:00] White has a decisive advantage.} Qxd6 {[%emt 0:00:00]} 12. Rxd6 {
[%emt 0:00:00]} O-O-O $146 {[%emt 0:00:00]} ({Predecessor:} 12... Ke7 13. Rd2
h6 14. Bh4 g5 15. Bg3 a6 16. Bd6+ Ke8 17. Be2 b5 18. a3 Ng8 19. Rhd1 Bc8 20.
Bxb5 axb5 21. Nxb5 {1-0 (21) Saathoff,R (2053)-Surinya,T (2001) Bayern 2016})
13. Be2 {[%emt 0:00:00]} h6 {[%emt 0:00:00]} 14. Be3 {[%emt 0:00:00]} Ne8 {
[%emt 0:00:00]} 15. Rd2 {[%emt 0:00:00]} Nc7 {[%emt 0:00:00]} 16. Rhd1 {
[%emt 0:00:00]} b6 {[%emt 0:00:00]} 17. f3 {[%emt 0:00:00]} Be8 {[%emt 0:00:00]
} 18. Nb1 {[%emt 0:00:00][%cal Bc3b1,Bb1a3,Ba3c4][%mdl 32]} f6 {[%emt 0:00:00]}
19. Na3 {[%emt 0:00:00]} Bf7 {[%emt 0:00:00]} 20. Nc4 {[%emt 0:00:00]} Ne8 {
[%emt 0:00:00]} 21. Rxd8+ {[%emt 0:00:00]} Nxd8 {[%emt 0:00:00]} 22. a4 {
[%emt 0:00:00]} Nc6 {[%emt 0:00:00]} 23. c3 {[%emt 0:00:00]} e5 {[%emt 0:00:00]
} 24. b4 {[%emt 0:00:00]} Bxc4 {[%emt 0:00:00]} 25. Bxc4 {[%emt 0:00:00]} Kc7 {
[%emt 0:00:00]} 26. Kc2 {[%emt 0:00:00]} Nd6 {[%emt 0:00:00]} 27. Be2 {[%emt 0:
00:00]} Rd8 {[%emt 0:00:00]} 28. a5 {[%emt 0:00:00]} Ra8 {[%emt 0:00:00]} 29.
axb6+ {[%emt 0:00:00][%mdl 64] [#] Overworked Piece} axb6 {[%emt 0:00:00]} 30.
Bxb6+ {[%emt 0:00:00]} Kxb6 {[%emt 0:00:00]} 31. Rxd6 {[%emt 0:00:00][%mdl
4096] Endgame KRB-KRN} Ra2+ {[%emt 0:00:00]} 32. Kd1 {[%emt 0:00:00] Strongly
threatening b5.} Kc7 {[%eval 479,28] [%emt 0:00:00]} (32... Ra1+ {[%eval 314,
29] might work better.} 33. Kc2 Ra2+ 34. Kd3 Kc7) 33. Rd2 {[%emt 0:00:00]} Ra3
{[%emt 0:00:00]} 34. Kc2 {[%emt 0:00:00]} Ra2+ {[%emt 0:00:00]} 35. Kd3 {
[%emt 0:00:00]} Ra3 {[%emt 0:00:00]} 36. Kc4 {[%emt 0:00:00]} Nb8 {[%emt 0:00:
00]} 37. Rd5 {[%emt 0:00:00]} Nd7 {[%eval 563,26] [%emt 0:00:00]} (37... Ra2
$142 {[%eval 383,28]} 38. Kd3 Nc6) 38. Ra5 {[%emt 0:00:00] White is clearly
winning.} Nb6+ {[%emt 0:00:00]} 39. Kb5 {[%emt 0:00:00]} Rxa5+ {[%emt 0:00:00]}
40. Kxa5 {[%emt 0:00:00]} Nc8 {[%emt 0:00:00]} 41. Kb5 {[%emt 0:00:00]
Accuracy: White = 89%, Black = 55%.} 1-0

[Event "89_| Campeonato Brasileiro 2023"]
[Site "Recife"]
[Date "2023.12.14"]
[Round "1.5"]
[White "Quintiliano Pinto, Renato Rodrigues"]
[Black "De Vasconcelos, Arthur Silva"]
[Result "1-0"]
[ECO "D70"]
[WhiteElo "2489"]
[BlackElo "1700"]
[PlyCount "49"]
[EventDate "2023.??.??"]
[EventCountry "BRA"]
[TimeControl "90+30"]

{[%evp 9,49,142,146,161,165,159,162,146,267,267,247,186,307,295,427,411,538,
540,679,406,530,489,484,495,609,615,603,619,618,610,802,725,734,747,29984,
29985,29990,929,29990,29991,29993,29994]} 1. d4 {[%emt 0:00:00]} Nf6 {[%emt 0:
00:00]} 2. Nf3 {[%emt 0:00:00]} g6 {[%emt 0:00:00]} 3. c4 {[%emt 0:00:00]} d5 {
[%emt 0:00:00]} 4. cxd5 {[%emt 0:00:00]} Qxd5 {[%emt 0:00:00]} 5. Nc3 {[%emt 0:
00:00]} Qa5 {[%emt 0:00:00]} 6. Bd2 {[%emt 0:00:00] D70: Grünfeld: Unusual
White 3rd moves (met by ...d5).} c6 {[%emt 0:00:00]} 7. e4 {[%emt 0:00:00]} Bg7
{[%emt 0:00:00]} 8. Bc4 {[%emt 0:00:00] White is clearly better.} O-O {[%eval
267,24] [%emt 0:00:00]} (8... Qd8 $16 {[%eval 146,27]} 9. e5 Nd5) 9. e5 $18 {
[%emt 0:00:00]} Ne8 {[%emt 0:06:00]} 10. Qb3 {[%emt 0:00:00]} e6 $146 {[%eval
307,26] [%emt 0:00:00]} (10... Qb6 {[%eval 186,24] keeps fighting.} 11. Bg5 Qc7
) ({Predecessor:} 10... Qb6 11. Bg5 Qc7 12. Qa3 Be6 13. Bxe6 fxe6 14. Bxe7 Rf7
15. Bd6 Nxd6 16. exd6 Qb6 {1-0 (34) Reuter,A (1841)-Hausmann,H (1680) DESC
email 2001}) 11. h4 {[%emt 0:00:00]} Qd8 {[%eval 427,24] [%emt 0:00:00]} (11...
Qb6 $142 {[%eval 295,28]} 12. h5 Qxb3 13. Bxb3 (13. axb3 Nc7 $16) 13... Nc7)
12. h5 {[%emt 0:00:00]} Nc7 {[%emt 0:00:00]} 13. Ne4 {[%emt 0:00:00]} Ne8 {
[%emt 0:00:00]} 14. Nc3 {[%emt 0:00:00]} Nc7 {[%emt 0:02:30]} 15. hxg6 {
[%emt 0:09:00]} fxg6 {[%emt 0:00:30]} 16. Ne4 {[%emt 0:00:30]} Nd5 {[%emt 0:00:
30] [#]} 17. Rxh7 $3 {[%emt 0:00:30][%mdl 512]} Kxh7 {[%emt 0:00:30]} 18. Nfg5+
{[%emt 0:00:30]} Kg8 {[%emt 0:00:30] and if ...Bh6 works, Black does fine.} 19.
Qh3 {[%emt 0:00:30][%csl Gg5][%cal Rh3h7]} Rf5 {[%emt 0:00:30]} 20. Qh7+ {
[%emt 0:00:30]} Kf8 {[%emt 0:00:30]} 21. Bxd5 {[%emt 0:00:30]} cxd5 {[%emt 0:
00:30]} 22. Bb4+ {[%emt 0:00:30]} Ke8 {[%emt 0:00:30]} 23. Qg8+ {[%eval 929,29]
[%emt 0:00:30]} (23. Rc1 $142 {[%eval 32748,57]} Nc6 24. Qxg6+ Kd7 25. Qxg7+
Qe7 26. Bxe7 Rf7 27. Qxf7 Kc7 28. Bc5+ Bd7 29. Nxe6+ Kc8 30. Qg8+ Be8 31. Qxe8+
Nd8 32. Qxd8#) 23... Kd7 {[%emt 0:00:30]} 24. Nc5+ {[%emt 0:00:30][%mdl 64] [#]
Double Attack} Kc7 {[%emt 0:00:30]} 25. Ngxe6+ {[%emt 0:00:30] Accuracy: White
= 76%, Black = 24%.} 1-0

[Event "89_| Campeonato Brasileiro 2023"]
[Site "Recife"]
[Date "2023.12.14"]
[Round "1.6"]
[White "Da Silva, Claus Benicio"]
[Black "Di Berardino, Diego Rafael"]
[Result "0-1"]
[ECO "A34"]
[WhiteElo "1697"]
[BlackElo "2477"]
[PlyCount "50"]
[EventDate "2023.??.??"]
[EventCountry "BRA"]
[TimeControl "90+30"]
[WhiteClock "1:04:36"]
[BlackClock "1:23:40"]

{[%evp 18,50,-22,-34,-18,-61,-53,-104,-104,-114,-96,-185,-183,-179,-192,-365,
-354,-356,-355,-438,-441,-434,-435,-505,-478,-475,-447,-642,-640,-624,-638,
-692,-697,-682,-687]} 1. c4 {[%emt 0:00:00]} c5 {[%emt 0:00:00]} 2. g3 {
[%emt 0:00:00]} Nf6 {[%emt 0:00:00]} 3. Bg2 {[%emt 0:00:00]} d5 {[%emt 0:00:00]
} 4. cxd5 {[%emt 0:00:00]} Nxd5 {[%emt 0:00:00]} 5. Nf3 {[%emt 0:00:00]} Nc6 {
[%emt 0:00:00]} 6. Nc3 {[%emt 0:00:00]} Nc7 {[%emt 0:00:00]} 7. O-O {[%emt 0:
00:00]} e5 {[%emt 0:00:00]} 8. d3 {[%emt 0:00:00]} Be7 {[%emt 0:00:00]} 9. b3 {
[%emt 0:00:00]} O-O {[%emt 0:00:00]} 10. Bb2 {[%emt 0:00:00]} f6 {[%emt 0:00:
00] A34: Symmetrical English: 2 Nc3, lines with ...d5.} 11. a3 {[%emt 0:00:00]}
Be6 {[%emt 0:00:00]} 12. Qc2 {[%emt 0:00:00]} Rc8 {[%emt 0:00:00] Black is
better.} 13. Rac1 $146 {[%emt 0:00:00]} ({Predecessor:} 13. e3 Na6 14. Rfd1 Qe8
15. Nd2 Qf7 16. Nc4 b5 17. Nxb5 Bd5 18. Nc3 Bxg2 19. Kxg2 {1-0 (33) Schoettker,
J (1785)-Deuer,M (1919) Playchess.com INT 2020}) 13... Qd7 {[%emt 0:00:00]} 14.
Rfd1 {[%eval -185,24] [%emt 0:00:00]} (14. Ne4 $17 {[%eval -96,27]}) 14... Nd4
$19 {[%emt 0:00:00]} 15. Nxd4 {[%emt 0:00:00]} cxd4 {[%emt 0:00:00]} 16. Nb1 $2
{[%eval -365,26] [%emt 0:00:00] [#]} (16. Ne4 {[%eval -192,28] was the only
defense.}) 16... Na6 {[%emt 0:00:00]} 17. Qd2 {[%emt 0:00:00]} Nc5 {[%emt 0:00:
00]} (17... Bxb3 $2 18. Rxc8 Rxc8 19. Rc1 $19) 18. Rxc5 {[%emt 0:00:00]} Rxc5 {
[%emt 0:00:00] Black is clearly winning.} ({Resist} 18... Bxc5 19. b4 $19) 19.
b4 {[%emt 0:00:00]} Rc7 {[%emt 0:00:00]} 20. Rc1 {[%emt 0:00:00]} Rfc8 {
[%emt 0:00:00] [#] Threatens to win with ...Rxc1+.} 21. Qd1 {[%emt 0:00:00]} b5
{[%emt 0:00:00] White must now prevent ...Rxc1.} 22. Nd2 {[%eval -642,25] 
[%emt 0:00:00]} (22. h4 $142 {[%eval -447,27]}) 22... Rxc1 {[%emt 0:00:00]} 23.
Bxc1 {[%emt 0:00:00]} Qc7 {[%emt 0:00:00]} 24. Nb3 {[%emt 0:00:00]} Qc2 {
[%emt 0:00:00]} 25. Qxc2 {[%emt 0:00:00]} Rxc2 {[%emt 0:00:00] Accuracy: White
= 22%, Black = 86%.} 0-1

[Event "89_| Campeonato Brasileiro 2023"]
[Site "Recife"]
[Date "2023.12.14"]
[Round "1.7"]
[White "Santiago, Yago De Moura"]
[Black "Silveira, Leonardo De Lima"]
[Result "1-0"]
[ECO "D90"]
[WhiteElo "2476"]
[BlackElo "1683"]
[PlyCount "19"]
[EventDate "2023.??.??"]
[EventCountry "BRA"]
[TimeControl "90+30"]
[WhiteClock "1:29:06"]

{[%evp 9,19,32,44,50,59,54,87,88,179,177,199,155]} 1. d4 {[%emt 0:00:00]} Nf6 {
[%emt 0:00:00]} 2. c4 {[%emt 0:00:00]} g6 {[%emt 0:00:00]} 3. Nc3 {[%emt 0:00:
00]} d5 {[%emt 0:00:00]} 4. Nf3 {[%emt 0:00:00]} Bg7 {[%emt 0:00:00]} 5. h4 {
[%emt 0:00:00]} h5 {[%emt 0:00:00]} 6. Bg5 {[%emt 0:00:00] D90: Grünfeld: 4
Nf3 Bg7 sidelines.} c6 {[%emt 0:00:00]} 7. e3 {[%emt 0:00:00]} Bf5 {[%emt 0:00:
00]} 8. Qb3 {[%emt 0:00:00]} b6 $146 {[%eval 179,24] [%emt 0:00:00]} (8... Qb6
$16 {[%eval 88,26]}) ({Predecessor:} 8... O-O 9. Qxb7 Qb6 10. Qxb6 axb6 11.
Bxf6 Bxf6 12. cxd5 c5 13. dxc5 bxc5 14. Be2 Nd7 {1-0 (41) Bjelobrk,I (2396)
-Thiel,T (2238) Chess.com INT 2023}) 9. cxd5 $18 {[%emt 0:00:00]} O-O {[%emt 0:
06:00]} 10. Be2 {[%emt 0:00:00]} 1-0

[Event "89_| Campeonato Brasileiro 2023"]
[Site "Recife"]
[Date "2023.12.14"]
[Round "1.8"]
[White "Dos Santos, Leonardo Lopes"]
[Black "Matsuura, Everaldo"]
[Result "0-1"]
[ECO "B40"]
[WhiteElo "1672"]
[BlackElo "2418"]
[PlyCount "22"]
[EventDate "2023.??.??"]
[EventCountry "BRA"]
[TimeControl "90+30"]
[WhiteClock "1:29:21"]
[BlackClock "1:27:28"]

{[%evp 5,5,37]} 1. e4 {[%emt 0:02:00]} c5 {[%emt 0:02:00]} 2. Nf3 {[%emt 0:00:
00]} e6 {[%emt 0:00:00]} 3. Nc3 {[%emt 0:00:00] Predecessor:} Nc6 $146 4. a4
Nf6 5. Bb5 Qc7 6. O-O {B40: Sicilian: 2...e6, Unusual lines.} Nd4 7. h3 Qf4 8.
Nxd4 cxd4 9. Ne2 Qxe4 10. d3 Qh4 11. Bf4 a6 {0-1 (42) Demchenko,A (2609)
-Aronian,L (2723) Chess.com INT 2023} 0-1

[Event "89_| Campeonato Brasileiro 2023"]
[Site "Recife"]
[Date "2023.12.14"]
[Round "2.1"]
[White "Casalaspro, Mathias Andre"]
[Black "Supi, Luis Paulo"]
[Result "0-1"]
[ECO "D00"]
[WhiteElo "2054"]
[BlackElo "2579"]
[PlyCount "58"]
[EventDate "2023.??.??"]
[EventCountry "BRA"]
[TimeControl "90+30"]
[WhiteClock "0:02:05"]
[BlackClock "0:45:04"]

{[%evp 9,58,-3,0,-9,24,14,47,49,56,-45,-31,-125,-106,-116,-121,-98,-10,-73,-68,
-185,-115,-242,-236,-264,-258,-268,-250,-237,-181,-301,-291,-345,-343,-339,
-340,-339,-341,-329,-328,-364,-334,-346,-332,-347,-353,-458,-468,-600,-588,
-592,-589]} 1. d4 {[%emt 0:00:00]} Nf6 {[%emt 0:00:00]} 2. Nc3 {[%emt 0:00:00]}
d5 {[%emt 0:00:00]} 3. Bf4 {[%emt 0:00:00]} e6 {[%emt 0:00:00]} 4. Nb5 {
[%emt 0:00:00]} Na6 {[%emt 0:00:00]} 5. e3 {[%emt 0:00:00]} Be7 {[%emt 0:00:00]
} 6. Nf3 {[%emt 0:00:00] D00:1 d4 d5: Unusual lines.} Nh5 {[%emt 0:00:00]} 7.
Be5 {[%emt 0:00:00]} c6 {[%emt 0:00:00]} 8. Nc3 {[%emt 0:00:00] White is
slightly better.} f6 {[%emt 0:00:00]} 9. Nd2 $146 {[%eval -45,26] [%emt 0:00:
00]} (9. g4 $14 {[%eval 56,25]}) ({Predecessor:} 9. Bg3 Qb6 10. Rb1 Bd7 11. Ne5
Nxg3 12. Nxd7 Kxd7 13. hxg3 Nc7 14. Bd3 c5 15. dxc5 Qxc5 {0-1 (38) Itkis,B 
(2312)-Eljanov,P (2695) Chess.com INT 2023}) 9... g6 $15 {[%emt 0:00:00]} 10.
g4 {[%eval -125,27] [%emt 0:00:00]} (10. Bg3 $15 {[%eval -31,26]}) 10... fxe5
$17 {[%emt 0:00:00]} 11. gxh5 {[%emt 0:00:00]} exd4 {[%emt 0:00:00]} 12. exd4 {
[%emt 0:00:00] [#]} Qb6 {[%eval -10,27] [%emt 0:00:00]} (12... e5 $1 $17 {
[%eval -98,20][%cal Re5d4][%mdl 512]} 13. dxe5 Nc5) 13. Nb3 {[%eval -73,24] 
[%emt 0:00:00] [#]} (13. Bxa6 $11 {[%eval -10,27] remains equal.} Qxb2 14. Bxb7
(14. hxg6 $2 Qxc3 15. g7 Rg8 $17) 14... Bxb7 15. Ne2) 13... e5 $1 $36 {[%emt 0:
00:00][%mdl 2560] Black has the initiative.} 14. dxe5 {[%eval -185,24] [%emt 0:
00:00]} ({White should play} 14. Bxa6 $15 {[%eval -68,28]} bxa6 15. hxg6 hxg6
16. dxe5) 14... Rf8 {[%eval -115,27] [%emt 0:00:00]} ({Black should try} 14...
O-O $19 {[%eval -185,24][%csl Gf8][%cal Rb6f2]} 15. Qd2 Nb4) 15. Qd4 {[%eval
-242,23] [%emt 0:00:00]} (15. Qd2 $17 {[%eval -115,27] was the only defense.})
15... Nb4 $19 {[%emt 0:00:00]} ({Weaker is} 15... gxh5 16. Be2 $15) 16. Qxb6 {
[%emt 0:00:00]} axb6 {[%emt 0:00:00]} 17. Bd3 {[%emt 0:00:00]} Nxd3+ {[%emt 0:
00:00]} 18. cxd3 {[%emt 0:00:00]} gxh5 {[%emt 0:00:00]} 19. Rc1 {[%eval -301,
24] [%emt 0:00:00]} (19. h3 $142 {[%eval -181,25]}) 19... Bg5 {[%emt 0:00:00]}
20. Rc2 {[%emt 0:00:00]} Bf5 {[%emt 0:00:00]} 21. Ke2 {[%emt 0:00:06]} Bf4 {
[%emt 0:00:00]} 22. Nd4 {[%emt 0:02:33]} Bxe5 {[%emt 0:00:00]} 23. Nxf5 {
[%emt 0:00:14]} Rxf5 {[%emt 0:00:00]} 24. a3 {[%emt 0:02:06]} Kf7 {[%emt 0:00:
00]} 25. Kf1 {[%emt 0:04:58]} Rf3 {[%emt 0:00:00]} 26. Ke2 {[%emt 0:01:52]} Rh3
{[%emt 0:00:00]} 27. Rcc1 {[%emt 0:01:15]} Re8 {[%emt 0:00:00] White must now
prevent ...Bxc3+.Black is clearly winning.} 28. Kd2 {[%emt 0:00:36]} Bf4+ {
[%emt 0:00:00][%mdl 64] Skewer} 29. Kc2 {[%emt 0:00:15]} Bxc1 {[%emt 0:00:00]
Accuracy: White = 39%, Black = 67%.} 0-1

[Event "89_| Campeonato Brasileiro 2023"]
[Site "Recife"]
[Date "2023.12.14"]
[Round "2.3"]
[White "Iurk, Jonel Nazareno"]
[Black "Fier, Alexandr"]
[Result "0-1"]
[ECO "D76"]
[WhiteElo "2044"]
[BlackElo "2545"]
[PlyCount "72"]
[EventDate "2023.??.??"]
[EventCountry "BRA"]
[TimeControl "90+30"]
[WhiteClock "0:01:46"]
[BlackClock "0:59:32"]

{[%evp 23,72,0,30,3,21,0,0,-9,-7,-7,-5,-39,-40,-43,0,0,0,-3,0,-2,0,0,0,0,0,0,0,
-4,10,0,0,0,2,0,2,-19,-19,-20,0,-3,0,-2,-3,-7,-8,-11,-6,-244,-197,-335,-357]} 
1. d4 {[%emt 0:00:00]} Nf6 {[%emt 0:00:00]} 2. c4 {[%emt 0:00:00]} g6 {[%emt 0:
00:00]} 3. Nf3 {[%emt 0:00:00]} Bg7 {[%emt 0:00:00]} 4. g3 {[%emt 0:00:00]} d5
{[%emt 0:00:00]} 5. Bg2 {[%emt 0:00:00]} O-O {[%emt 0:00:00]} 6. cxd5 {[%emt 0:
00:00]} Nxd5 {[%emt 0:00:00]} 7. O-O {[%emt 0:00:00]} Nb6 {[%emt 0:00:00]} 8.
Nc3 {[%emt 0:00:00]} Nc6 {[%emt 0:00:00]} 9. e3 {[%emt 0:00:00]} Re8 {[%emt 0:
00:00]} 10. b3 {[%emt 0:00:00]} e5 {[%emt 0:00:00]} 11. dxe5 {[%emt 0:00:00]}
Nxe5 {[%emt 0:00:00]} 12. Nxe5 {[%emt 0:00:00]} Bxe5 {[%emt 0:00:00]} 13. Bb2 {
[%emt 0:00:00] D76: Fianchetto Grünfeld: Main Line with 7...Nb6.} (13. Qc2 {
keeps more tension.} Qe7 14. e4 Qc5 15. Bd2 a5 16. Rac1) 13... c6 {[%emt 0:00:
00]} 14. Qxd8 {[%emt 0:00:00]} Rxd8 {[%emt 0:00:00]} 15. Rad1 {[%emt 0:00:00]
The position is equal.} Bg4 {[%emt 0:00:00]} 16. f3 {[%emt 0:00:00]} Be6 {
[%emt 0:00:00]} 17. Rxd8+ {[%emt 0:00:00]} Rxd8 {[%emt 0:00:00]} 18. Rd1 {
[%emt 0:00:00]} Ra8 $146 {[%emt 0:00:00]} ({Predecessor:} 18... Rxd1+ 19. Nxd1
Bxb2 20. Nxb2 Nd5 21. Nd1 b5 22. Kf2 c5 23. Bf1 a6 24. e4 Nb4 {1/2-1/2 (36)
Sogaard,O (2512)-Bross,H (2559) ICCF email 2001}) 19. Rd2 {[%emt 0:00:00]} a5 {
[%emt 0:00:00]} 20. f4 $36 {[%emt 0:00:00][%mdl 2048] White fights for an
advantage.} Bg7 {[%emt 0:00:00]} 21. Ne4 {[%emt 0:00:00]} Bxb2 {[%emt 0:00:00]}
22. Rxb2 {[%emt 0:00:00]} Kf8 {[%emt 0:00:00]} 23. Nc5 {[%emt 0:00:00]} Bc8 {
[%emt 0:00:00]} 24. Kf2 {[%emt 0:00:00]} Ke7 {[%emt 0:00:00]} 25. e4 {[%emt 0:
00:00]} f6 {[%emt 0:00:00]} 26. Bf1 {[%emt 0:00:00]} a4 {[%emt 0:00:00]} 27. b4
{[%emt 0:04:13]} a3 {[%emt 0:00:00]} 28. Rc2 {[%emt 0:02:28]} f5 {[%emt 0:00:
00]} 29. Bd3 {[%emt 0:01:55]} fxe4 {[%emt 0:00:00]} 30. Bxe4 {[%emt 0:00:35]}
Ra7 {[%emt 0:00:00]} 31. Re2 {[%emt 0:02:44] [#] Threatens to win with Bxg6+.}
Kd6 {[%emt 0:00:00]} 32. Rd2+ {[%emt 0:02:09]} Kc7 {[%emt 0:00:00]} 33. Rc2 {
[%emt 0:00:28]} Na4 {[%emt 0:00:00]} 34. h4 {[%emt 0:00:26]} Bg4 {[%emt 0:00:
00]} 35. b5 $2 {[%eval -244,30] [%emt 0:02:07] [#]} (35. Ke3 $11 {[%eval -6,32]
}) 35... Kb6 {[%emt 0:00:00]} 36. Nxa4+ {[%eval -335,27] [%emt 0:00:39]} (36.
Nd3 $142 {[%eval -197,26]} Kxb5 37. Ne5) 36... Rxa4 {[%emt 0:00:00] Accuracy:
White = 61%, Black = 81%.} 0-1